[Event "2nd Mix Bassano 2021"]
[Site "Bassano del Grappa"]
[Date "2021.03.27"]
[Round "7.1"]
[White "Niemann, Hans Moke"]
[Black "Sonis, Francesco"]
[Result "1/2-1/2"]
[ECO "E08"]
[WhiteElo "2526"]
[BlackElo "2477"]
[Annotator "ChessBase"]
[PlyCount "132"]
[EventDate "2021.03.24"]
[EventType "swiss"]
[EventCountry "ITA"]
[SourceTitle "playchess.com"]
[Source "ChessBase"]
[SourceQuality "1"]
[TimeControl "5400+30"]

1. d4 {[%emt 0:09:35]} Nf6 {[%emt 0:00:00]} 2. c4 {[%emt 1:21:25]} e6 {[%emt 1:31:00]} 3. Nf3 {[%emt 0:00:30]} d5 {[%emt 0:00:30]} 4. g3 {[%emt 0:00:30]} Bb4+ {[%emt 0:00:30]} 5. Bd2 {[%emt 0:00:30]} Be7 {[%emt 0:00:30]} 6. Bg2 {[%emt 0:00:30]} O-O {[%emt 0:00:30]} 7. O-O {[%emt 0:00:30]} c6 {[%emt 0:00:30]} 8. Qc2 {[%emt 0:00:30]} b6 {[%emt 0:00:30]} 9. Bf4 {[%emt 0:00:30]} Bb7 {[%emt 0:00:30]} 10. Rd1 {[%emt 0:00:30]} Nbd7 {[%emt 0:00:30]} 11. Nc3 {[%emt 0:00:30]} Nh5 {[%emt 0:00:30]} 12. Bc1 {[%emt 0:00:30]} f5 {[%emt 0:00:30]} 13. b3 {[%emt 0:00:30]} Rc8 {[%emt 0:00:30]} 14. e3 {[%emt 0:00:30]} Bd6 {[%emt 0:00:30]} 15. Ne2 {[%emt 0:00:30]} c5 {[%emt 0:00:30]} 16. Ba3 {[%emt 0:00:30]} Qe7 {[%emt 0:00:30]} 17. Rac1 {[%emt 0:00:30]} dxc4 {[%emt 0:00:30]} 18. bxc4 {[%emt 0:00:30]} Be4 {[%emt 0:00:30]} 19. Qb3 {[%emt 0:00:30]} Nhf6 {[%emt 0:00:30]} 20. Nc3 {[%emt 0:00:30]} e5 {[%emt 0:00:30]} 21. Nxe4 {[%emt 0:00:30]} fxe4 {[%emt 0:00:30]} 22. dxe5 {[%emt 0:00:30]} Nxe5 {[%emt 0:00:30]} 23. Nd2 {[%emt 0:00:30]} Nf7 {[%emt 0:00:30]} 24. Bb2 {[%emt 0:00:30]} Be5 {[%emt 0:00:30]} 25. a4 {[%emt 0:00:30]} Rcd8 {[%emt 0:00:30]} 26. Bxe5 {[%emt 0:00:30]} Qxe5 {[%emt 0:00:30]} 27. Qc2 {[%emt 0:00:30]} Rde8 {[%emt 0:00:30]} 28. a5 {[%emt 0:00:30]} Qe6 {[%emt 0:00:30]} 29. axb6 {[%emt 0:00:30]} axb6 {[%emt 0:00:30]} 30. Nb1 {[%emt 0:00:30]} Ng5 {[%emt 0:00:30]} 31. Nc3 {[%emt 0:00:30]} Ng4 {[%emt 0:00:30]} 32. Rd2 {[%emt 0:00:30]} Nf3+ {[%emt 0:00:30]} 33. Bxf3 {[%emt 0:00:30]} Rxf3 {[%emt 0:00:30]} 34. h3 {[%emt 0:00:30]} Nf6 {[%emt 0:00:30]} 35. Kg2 {[%emt 0:00:30]} Qxc4 {[%emt 0:00:30]} 36. Rb1 {[%emt 0:00:30]} Rb8 {[%emt 0:00:30]} 37. Na4 {[%emt 0:00:30]} Qxc2 {[%emt 0:00:30]} 38. Rxc2 {[%emt 0:00:30]} Nd7 {[%emt 0:00:30]} 39. Nc3 {[%emt 0:00:30]} Rf6 {[%emt 0:00:30]} 40. Nxe4 {[%emt 0:00:30]} Rc6 {[%emt 0:00:30]} 41. Nc3 {[%emt 0:00:30]} c4 {[%emt 0:00:30]} 42. f4 {[%emt 0:00:30]} Nc5 {[%emt 0:00:30]} 43. Kf3 {[%emt 0:00:30]} Nb3 {[%emt 0:00:30]} 44. Na2 {[%emt 0:00:30]} Rd8 {[%emt 0:00:30]} 45. Ke2 {[%emt 0:00:30]} Rcd6 {[%emt 0:00:30]} 46. Rbb2 {[%emt 0:00:30]} b5 {[%emt 0:00:30]} 47. Nc3 {[%emt 0:00:30]} Rb8 {[%emt 0:00:30]} 48. Kf2 {[%emt 0:00:30]} b4 {[%emt 0:00:30]} 49. Na2 {[%emt 0:00:30]} Rc6 {[%emt 0:00:30]} 50. e4 {[%emt 0:00:30]} Rcc8 {[%emt 0:00:30]} 51. Ke3 {[%emt 0:00:30]} Kf7 {[%emt 0:00:30]} 52. g4 {[%emt 0:00:30]} Ke6 {[%emt 0:00:30]} 53. h4 {[%emt 0:00:30]} Kd6 {[%emt 0:00:30]} 54. g5 {[%emt 0:00:30]} Rc5 {[%emt 0:00:30]} 55. f5 {[%emt 0:00:30]} Rb7 {[%emt 0:00:30]} 56. h5 {[%emt 0:00:30]} Kc6 {[%emt 0:00:30]} 57. g6 {[%emt 0:00:30]} hxg6 {[%emt 0:00:30]} 58. hxg6 {[%emt 0:00:30]} Kb5 {[%emt 0:00:30]} 59. Rg2 {[%emt 0:00:30]} Rc8 {[%emt 0:00:30]} 60. e5 {[%emt 0:00:30]} Ka4 {[%emt 0:00:30]} 61. f6 {[%emt 0:00:30]} c3 {[%emt 0:00:30]} 62. Rbf2 {[%emt 0:00:30]} Nc5 {[%emt 0:00:30]} 63. fxg7 {[%emt 0:00:30]} Rxg7 {[%emt 0:00:30]} 64. Rf7 {[%emt 0:00:30]} Rxf7 {[%emt 0:00:30]} 65. gxf7 {[%emt 0:00:30]} Rf8 {[%emt 0:00:30]} 66. Rg4 {[%emt 0:00:30]} Rxf7 {[%emt 0:00:30]} 1/2-1/2

[Event "2nd Mix Bassano 2021"]
[Site "Bassano del Grappa"]
[Date "2021.03.27"]
[Round "7.2"]
[White "Bernadskiy, Vitaliy"]
[Black "Bellahcene, Bilel"]
[Result "1/2-1/2"]
[ECO "B22"]
[WhiteElo "2599"]
[BlackElo "2517"]
[Annotator "ChessBase"]
[PlyCount "43"]
[EventDate "2021.03.24"]
[EventType "swiss"]
[EventCountry "ITA"]
[SourceTitle "playchess.com"]
[Source "ChessBase"]
[SourceQuality "1"]
[TimeControl "5400+30"]

1. e4 {[%emt 0:00:00]} c5 {[%emt 0:04:22]} 2. Nf3 {[%emt 0:00:00]} e6 {[%emt 0:00:02]} 3. c3 {[%emt 0:00:06]} d5 {[%emt 0:00:38]} 4. exd5 {[%emt 0:00:06]} Qxd5 {[%emt 0:00:05]} 5. d4 {[%emt 0:00:15]} Nc6 {[%emt 0:01:06]} 6. Na3 {[%emt 0:02:58]} a6 {[%emt 0:12:26]} 7. Nc4 {[%emt 0:04:36]} Qd8 {[%emt 0:00:48]} 8. Be3 {[%emt 0:01:25]} cxd4 {[%emt 0:23:29]} 9. Nxd4 {[%emt 0:00:06]} Bd7 {[%emt 0:00:45]} 10. Qe2 {[%emt 0:15:42]} b5 {[%emt 0:10:27]} 11. Nxc6 {[%emt 0:24:55]} Bxc6 {[%emt 0:00:04]} 12. Ne5 {[%emt 0:00:08]} Bd5 {[%emt 0:00:25]} 13. a4 {[%emt 0:03:06]} bxa4 {[%emt 0:01:10]} 14. Rxa4 {[%emt 0:02:30]} Bd6 {[%emt 0:00:05]} 15. Bd4 {[%emt 0:05:22]} Nf6 {[%emt 0:00:51]} 16. Ng4 {[%emt 0:00:37]} Be7 {[%emt 0:02:05]} 17. Qd1 {[%emt 0:18:18]} O-O {[%emt 0:02:38]} 18. Bd3 {[%emt 0:01:20]} a5 {[%emt 0:11:55]} 19. O-O {[%emt 0:00:52]} Bc6 {[%emt 0:00:22]} 20. Rc4 {[%emt 0:02:25]} Bd5 {[%emt 0:05:08]} 21. Ra4 {[%emt 0:00:18]} Bc6 {[%emt 0:00:14]} 22. Rc4 {[%emt 0:02:42]} 1/2-1/2

[Event "2nd Mix Bassano 2021"]
[Site "Bassano del Grappa"]
[Date "2021.03.27"]
[Round "7.3"]
[White "Checa, Nicolas"]
[Black "Moroni, Luca Jr"]
[Result "1/2-1/2"]
[ECO "B08"]
[WhiteElo "2546"]
[BlackElo "2552"]
[Annotator "ChessBase"]
[PlyCount "78"]
[EventDate "2021.03.24"]
[EventType "swiss"]
[EventCountry "ITA"]
[SourceTitle "playchess.com"]
[Source "ChessBase"]
[SourceQuality "1"]
[TimeControl "5400+30"]

1. d4 {[%emt 0:05:07]} d6 {[%emt 0:00:34]} 2. e4 {[%emt 0:03:39]} Nf6 {[%emt 0:00:37]} 3. Nc3 {[%emt 0:01:41]} g6 {[%emt 0:00:05]} 4. Be3 {[%emt 0:04:38]} Bg7 {[%emt 0:01:08]} 5. h3 {[%emt 0:02:12]} O-O {[%emt 0:01:10]} 6. Nf3 {[%emt 0:07:13]} a6 {[%emt 0:04:29]} 7. a4 {[%emt 0:03:45]} Nc6 {[%emt 0:01:32]} 8. a5 {[%emt 0:06:10]} e6 {[%emt 0:03:38]} 9. Be2 {[%emt 0:04:23]} b5 {[%emt 0:04:39]} 10. axb6 {[%emt 0:00:25]} cxb6 {[%emt 0:00:02]} 11. O-O {[%emt 0:01:25]} Bb7 {[%emt 0:05:01]} 12. d5 {[%emt 0:10:08]} exd5 {[%emt 0:01:08]} 13. Nxd5 {[%emt 0:00:11]} Nxd5 {[%emt 0:05:11]} 14. Qxd5 {[%emt 0:00:48]} b5 {[%emt 0:07:28]} 15. Qb3 {[%emt 0:05:56]} Re8 {[%emt 0:07:43]} 16. Bd3 {[%emt 0:06:36]} Qc7 {[%emt 0:05:32]} 17. c3 {[%emt 0:00:52]} Na5 {[%emt 0:04:11]} 18. Qc2 {[%emt 0:02:02]} d5 {[%emt 0:01:51]} 19. Nd2 {[%emt 0:04:18]} Nc4 {[%emt 0:03:29]} 20. Bxc4 {[%emt 0:00:20]} dxc4 {[%emt 0:00:09]} 21. Bd4 {[%emt 0:00:06]} Rad8 {[%emt 0:01:56]} 22. Bxg7 {[%emt 0:00:11]} Kxg7 {[%emt 0:00:11]} 23. f3 {[%emt 0:00:05]} Qf4 {[%emt 0:05:55]} 24. Rf2 {[%emt 0:00:26]} Rd6 {[%emt 0:00:54]} 25. Nf1 {[%emt 0:00:56]} Red8 {[%emt 0:01:06]} 26. Qc1 {[%emt 0:00:20]} Qxc1 {[%emt 0:02:00]} 27. Rxc1 {[%emt 0:00:06]} f5 {[%emt 0:00:59]} 28. exf5 {[%emt 0:03:58]} gxf5 {[%emt 0:00:04]} 29. Ne3 {[%emt 0:00:35]} Kf6 {[%emt 0:00:55]} 30. Nc2 {[%emt 0:00:31]} Rd1+ {[%emt 0:01:57]} 31. Rxd1 {[%emt 0:00:06]} Rxd1+ {[%emt 0:00:03]} 32. Rf1 {[%emt 0:00:06]} Rd2 {[%emt 0:00:05]} 33. Rf2 {[%emt 0:00:06]} Rd1+ {[%emt 0:00:04]} 34. Rf1 {[%emt 0:00:03]} Rd3 {[%emt 0:04:41]} 35. Nb4 {[%emt 0:01:25]} Rd2 {[%emt 0:01:57]} 36. Rf2 {[%emt 0:00:05]} Rd1+ {[%emt 0:00:06]} 37. Rf1 {[%emt 0:00:05]} Rd6 {[%emt 0:03:20]} 38. Nc2 {[%emt 0:00:19]} Rd2 {[%emt 0:05:53]} 39. Rf2 {[%emt 0:00:17]} Rd1+ {[%emt 0:00:03]} 1/2-1/2

[Event "2nd Mix Bassano 2021"]
[Site "Bassano del Grappa"]
[Date "2021.03.27"]
[Round "7.4"]
[White "Peralta, Fernando"]
[Black "Janzelj, Tim"]
[Result "1-0"]
[ECO "D35"]
[WhiteElo "2561"]
[BlackElo "2468"]
[Annotator "ChessBase"]
[PlyCount "127"]
[EventDate "2021.03.24"]
[EventType "swiss"]
[EventCountry "ITA"]
[SourceTitle "playchess.com"]
[Source "ChessBase"]
[SourceQuality "1"]
[TimeControl "5400+30"]

1. d4 {[%emt 0:01:46]} d5 {[%emt 0:00:57]} 2. c4 {[%emt 0:00:00]} e6 {[%emt 0:00:05]} 3. Nc3 {[%emt 0:00:00]} Nf6 {[%emt 0:00:06]} 4. cxd5 {[%emt 0:00:00]} exd5 {[%emt 0:00:06]} 5. Bg5 {[%emt 0:00:00]} Be7 {[%emt 0:00:09]} 6. e3 {[%emt 0:00:00]} c6 {[%emt 0:00:11]} 7. Bd3 {[%emt 0:00:00]} Nbd7 {[%emt 0:00:07]} 8. Nge2 {[%emt 0:00:28]} h6 {[%emt 0:00:08]} 9. Bh4 {[%emt 0:00:33]} Nh5 {[%emt 0:00:09]} 10. Bxe7 {[%emt 0:00:33]} Qxe7 {[%emt 0:00:02]} 11. Qd2 {[%emt 0:01:00]} Nb6 {[%emt 0:00:16]} 12. f3 {[%emt 0:00:56]} Bd7 {[%emt 0:00:46]} 13. O-O {[%emt 0:01:13]} O-O {[%emt 0:00:21]} 14. g4 {[%emt 0:04:50]} Nf6 {[%emt 0:00:27]} 15. Nf4 {[%emt 0:00:08]} c5 {[%emt 0:04:24]} 16. Rae1 {[%emt 0:02:53]} cxd4 {[%emt 0:06:08]} 17. exd4 {[%emt 0:00:08]} Qb4 {[%emt 0:00:09]} 18. Qf2 {[%emt 0:02:14]} Rae8 {[%emt 0:02:02]} 19. h4 {[%emt 0:24:30]} Qd6 {[%emt 0:10:08]} 20. Qh2 {[%emt 0:01:11]} g6 {[%emt 0:31:32]} 21. a3 {[%emt 0:15:01]} Rxe1 {[%emt 0:05:36]} 22. Rxe1 {[%emt 0:00:06]} Re8 {[%emt 0:00:06]} 23. Rxe8+ {[%emt 0:00:58]} Bxe8 {[%emt 0:00:01]} 24. Ng2 {[%emt 0:08:25]} Qxh2+ {[%emt 0:08:26]} 25. Kxh2 {[%emt 0:00:05]} Kf8 {[%emt 0:00:39]} 26. Ne3 {[%emt 0:00:39]} Bc6 {[%emt 0:01:47]} 27. Kg3 {[%emt 0:01:47]} Ke7 {[%emt 0:00:02]} 28. Kf4 {[%emt 0:07:37]} a6 {[%emt 0:00:53]} 29. b3 {[%emt 0:06:02]} Nfd7 {[%emt 0:01:15]} 30. h5 {[%emt 0:03:48]} Nf8 {[%emt 0:00:31]} 31. Kg3 {[%emt 0:00:59]} Kf6 {[%emt 0:00:25]} 32. f4 {[%emt 0:02:34]} Ne6 {[%emt 0:02:15]} 33. hxg6 {[%emt 0:02:05]} fxg6 {[%emt 0:00:08]} 34. Bxg6 {[%emt 0:01:00]} Nxd4 {[%emt 0:04:52]} 35. Bc2 {[%emt 0:00:08]} Kg7 {[%emt 0:10:51]} 36. Nf5+ {[%emt 0:04:12]} Nxf5+ {[%emt 0:00:01]} 37. Bxf5 {[%emt 0:00:07]} a5 {[%emt 0:05:21]} 38. Bc2 {[%emt 0:01:37]} Nc8 {[%emt 0:01:01]} 39. Ne2 {[%emt 0:00:31]} Nd6 {[%emt 0:00:07]} 40. Nd4 {[%emt 0:00:31]} Bd7 {[%emt 0:00:28]} 41. g5 {[%emt 0:02:48]} b6 {[%emt 0:04:38]} 42. Kh4 {[%emt 0:00:40]} Nb5 {[%emt 0:01:37]} 43. Nxb5 {[%emt 0:03:07]} Bxb5 {[%emt 0:00:01]} 44. Kg3 {[%emt 0:00:46]} d4 {[%emt 0:01:35]} 45. Kf3 {[%emt 0:02:52]} Bc6+ {[%emt 0:00:12]} 46. Be4 {[%emt 0:00:37]} Bd7 {[%emt 0:00:45]} 47. Bd5 {[%emt 0:01:29]} Bf5 {[%emt 0:00:09]} 48. Be4 {[%emt 0:00:29]} Be6 {[%emt 0:00:15]} 49. b4 {[%emt 0:00:08]} axb4 {[%emt 0:00:06]} 50. axb4 {[%emt 0:00:01]} Bd7 {[%emt 0:01:47]} 51. Bd3 {[%emt 0:00:17]} Bc6+ {[%emt 0:00:10]} 52. Kg4 {[%emt 0:00:12]} Bd7+ {[%emt 0:00:42]} 53. Kh5 {[%emt 0:01:21]} hxg5 {[%emt 0:00:52]} 54. Kxg5 {[%emt 0:01:04]} Kf7 {[%emt 0:00:36]} 55. f5 {[%emt 0:00:30]} Bc6 {[%emt 0:00:27]} 56. Bc4+ {[%emt 0:00:20]} Ke7 {[%emt 0:00:20]} 57. f6+ {[%emt 0:00:34]} Kd6 {[%emt 0:00:44]} 58. Kg6 {[%emt 0:00:32]} Be8+ {[%emt 0:00:30]} 59. f7 {[%emt 0:00:35]} Bxf7+ {[%emt 0:00:06]} 60. Kxf7 {[%emt 0:00:02]} Ke5 {[%emt 0:00:23]} 61. Ke7 {[%emt 0:00:30]} d3 {[%emt 0:00:42]} 62. Bxd3 {[%emt 0:00:48]} Kd4 {[%emt 0:00:01]} 63. Bf1 {[%emt 0:00:39]} b5 {[%emt 0:00:10]} 64. Kd6 {[%emt 0:00:04]} 1-0

[Event "2nd Mix Bassano 2021"]
[Site "Bassano del Grappa"]
[Date "2021.03.27"]
[Round "7.5"]
[White "Bjerre, Jonas Buhl"]
[Black "Di Benedetto, Edoardo"]
[Result "1-0"]
[ECO "E06"]
[WhiteElo "2549"]
[BlackElo "2400"]
[Annotator "ChessBase"]
[PlyCount "117"]
[EventDate "2021.03.24"]
[EventType "swiss"]
[EventCountry "ITA"]
[SourceTitle "playchess.com"]
[Source "ChessBase"]
[SourceQuality "1"]
[TimeControl "5400+30"]

1. d4 {[%emt 0:00:29]} d5 {[%emt 0:01:49]} 2. c4 {[%emt 0:00:08]} e6 {[%emt 0:00:04]} 3. Nf3 {[%emt 0:00:06]} Nf6 {[%emt 0:00:04]} 4. g3 {[%emt 0:00:03]} Be7 {[%emt 0:00:05]} 5. Bg2 {[%emt 0:00:06]} O-O {[%emt 0:00:05]} 6. Nc3 {[%emt 0:00:07]} dxc4 {[%emt 0:00:37]} 7. Ne5 {[%emt 0:00:20]} Nc6 {[%emt 0:00:27]} 8. Bxc6 {[%emt 0:00:31]} bxc6 {[%emt 0:00:06]} 9. Nxc6 {[%emt 0:00:05]} Qe8 {[%emt 0:00:09]} 10. Nxe7+ {[%emt 0:00:09]} Qxe7 {[%emt 0:00:08]} 11. Qa4 {[%emt 0:00:17]} c5 {[%emt 0:27:39]} 12. dxc5 {[%emt 0:02:19]} Qxc5 {[%emt 0:02:08]} 13. Be3 {[%emt 0:00:11]} Qh5 {[%emt 0:09:13]} 14. f3 {[%emt 0:02:11]} Bb7 {[%emt 0:03:25]} 15. Kf2 {[%emt 0:03:07]} Rfc8 {[%emt 0:08:56]} 16. Rad1 {[%emt 0:04:39]} Qf5 {[%emt 0:06:18]} 17. h3 {[%emt 0:04:52]} Nd5 {[%emt 0:05:32]} 18. Nxd5 {[%emt 0:04:59]} Bxd5 {[%emt 0:04:08]} 19. Bd4 {[%emt 0:07:00]} Bc6 {[%emt 0:03:40]} 20. Qb4 {[%emt 0:03:38]} e5 {[%emt 0:12:40]} 21. Qa5 {[%emt 0:04:29]} f6 {[%emt 0:01:17]} 22. Bc3 {[%emt 0:06:29]} Qe6 {[%emt 0:01:04]} 23. g4 {[%emt 0:05:12]} Bb7 {[%emt 0:07:54]} 24. e4 {[%emt 0:06:12]} Qb6+ {[%emt 0:00:30]} 25. Qxb6 {[%emt 0:01:30]} axb6 {[%emt 0:00:06]} 26. Rd6 {[%emt 0:00:51]} Rxa2 {[%emt 0:03:26]} 27. Rxb6 {[%emt 0:02:34]} Rc7 {[%emt 0:00:50]} 28. Rd6 {[%emt 0:05:24]} Kf7 {[%emt 0:00:55]} 29. Rhd1 {[%emt 0:01:00]} Bc8 {[%emt 0:00:23]} 30. Rd8 {[%emt 0:03:52]} Be6 {[%emt 0:00:20]} 31. h4 {[%emt 0:02:26]} Rc8 {[%emt 0:00:40]} 32. R8d6 {[%emt 0:01:18]} Ra7 {[%emt 0:00:33]} 33. Rb6 {[%emt 0:01:49]} Rd7 {[%emt 0:00:37]} 34. Ra1 {[%emt 0:00:12]} Rdc7 {[%emt 0:00:29]} 35. Raa6 {[%emt 0:00:28]} Bd7 {[%emt 0:00:15]} 36. Rd6 {[%emt 0:01:35]} Re8 {[%emt 0:00:33]} 37. g5 {[%emt 0:02:35]} Re6 {[%emt 0:00:30]} 38. h5 {[%emt 0:01:10]} Rxd6 {[%emt 0:00:36]} 39. Rxd6 {[%emt 0:00:05]} fxg5 {[%emt 0:00:37]} 40. Bxe5 {[%emt 0:00:41]} Rb7 {[%emt 0:00:36]} 41. h6 {[%emt 0:00:43]} gxh6 {[%emt 0:00:08]} 42. Rxh6 {[%emt 0:00:08]} Kg8 {[%emt 0:00:47]} 43. Rh5 {[%emt 0:00:31]} g4 {[%emt 0:00:13]} 44. f4 {[%emt 0:01:25]} Bc6 {[%emt 0:00:45]} 45. Ke3 {[%emt 0:01:10]} Rd7 {[%emt 0:00:35]} 46. Bd4 {[%emt 0:00:47]} Re7 {[%emt 0:00:30]} 47. Rg5+ {[%emt 0:00:57]} Kf7 {[%emt 0:00:05]} 48. e5 {[%emt 0:00:10]} h6 {[%emt 0:01:01]} 49. Rf5+ {[%emt 0:02:29]} Kg8 {[%emt 0:00:18]} 50. Rf6 {[%emt 0:00:22]} Bd5 {[%emt 0:00:34]} 51. f5 {[%emt 0:01:04]} g3 {[%emt 0:00:26]} 52. Rg6+ {[%emt 0:05:23]} Rg7 {[%emt 0:00:26]} 53. Rxg7+ {[%emt 0:01:00]} Kxg7 {[%emt 0:00:05]} 54. e6+ {[%emt 0:00:05]} Kf8 {[%emt 0:00:57]} 55. Kf4 {[%emt 0:00:17]} g2 {[%emt 0:00:06]} 56. Ke5 {[%emt 0:00:33]} Bf3 {[%emt 0:00:19]} 57. Bc5+ {[%emt 0:00:59]} Ke8 {[%emt 0:00:07]} 58. f6 {[%emt 0:00:15]} Bh5 {[%emt 0:00:08]} 59. Ke4 {[%emt 0:00:00]} 1-0

[Event "2nd Mix Bassano 2021"]
[Site "Bassano del Grappa"]
[Date "2021.03.27"]
[Round "7.6"]
[White "Schreiner, Peter"]
[Black "Martin Duque, Jesus"]
[Result "1-0"]
[ECO "A10"]
[WhiteElo "2445"]
[BlackElo "2454"]
[Annotator "ChessBase"]
[PlyCount "103"]
[EventDate "2021.03.24"]
[EventType "swiss"]
[EventCountry "ITA"]
[SourceTitle "playchess.com"]
[Source "ChessBase"]
[SourceQuality "1"]
[TimeControl "5400+30"]

1. c4 {[%emt 0:01:40]} b6 {[%emt 0:00:00]} 2. Nc3 {[%emt 0:01:46]} Bb7 {[%emt 0:00:00]} 3. e4 {[%emt 0:00:28]} e5 {[%emt 0:00:03]} 4. Nf3 {[%emt 0:02:57]} Nc6 {[%emt 0:00:45]} 5. d4 {[%emt 0:05:12]} exd4 {[%emt 0:00:29]} 6. Nxd4 {[%emt 0:00:05]} Bc5 {[%emt 0:04:14]} 7. Nf5 {[%emt 0:04:51]} g6 {[%emt 0:01:35]} 8. Ne3 {[%emt 0:00:29]} Nf6 {[%emt 0:22:11]} 9. g3 {[%emt 0:29:01]} O-O {[%emt 0:02:25]} 10. Bg2 {[%emt 0:03:00]} Re8 {[%emt 0:00:31]} 11. O-O {[%emt 0:00:29]} Ne5 {[%emt 0:20:10]} 12. b3 {[%emt 0:46:02]} b5 {[%emt 0:08:13]} 13. cxb5 {[%emt 0:00:00]} a6 {[%emt 0:00:08]} 14. b6 {[%emt 0:00:00]} cxb6 {[%emt 0:02:04]} 15. Ned5 {[%emt 0:00:00]} Nxd5 {[%emt 0:00:25]} 16. Nxd5 {[%emt 0:00:00]} a5 {[%emt 0:00:42]} 17. h4 {[%emt 0:00:00]} f6 {[%emt 0:02:23]} 18. Be3 {[%emt 0:00:00]} Ba6 {[%emt 0:02:50]} 19. Bxc5 {[%emt 0:00:00]} bxc5 {[%emt 0:00:22]} 20. Re1 {[%emt 0:00:00]} Kg7 {[%emt 0:02:58]} 21. Qd2 {[%emt 0:00:00]} d6 {[%emt 0:04:59]} 22. Rad1 {[%emt 0:00:00]} Ra7 {[%emt 0:00:14]} 23. Nc3 {[%emt 0:00:00]} Rd7 {[%emt 0:02:36]} 24. f4 {[%emt 0:00:00]} Nf7 {[%emt 0:01:27]} 25. Nd5 {[%emt 0:00:00]} Bb5 {[%emt 0:05:22]} 26. Qc3 {[%emt 0:00:00]} Bc6 {[%emt 0:01:23]} 27. g4 {[%emt 0:00:58]} Bxd5 {[%emt 0:01:28]} 28. Rxd5 {[%emt 0:00:13]} h6 {[%emt 0:03:07]} 29. g5 {[%emt 0:00:26]} hxg5 {[%emt 0:00:43]} 30. hxg5 {[%emt 0:00:02]} Ra7 {[%emt 0:00:30]} 31. gxf6+ {[%emt 0:02:01]} Qxf6 {[%emt 0:00:01]} 32. e5 {[%emt 0:00:24]} dxe5 {[%emt 0:01:51]} 33. fxe5 {[%emt 0:00:05]} Qe6 {[%emt 0:00:18]} 34. Rd6 {[%emt 0:00:57]} Qe7 {[%emt 0:00:42]} 35. e6+ {[%emt 0:01:12]} Kh7 {[%emt 0:00:02]} 36. exf7 {[%emt 0:01:10]} Qxe1+ {[%emt 0:02:34]} 37. Qxe1 {[%emt 0:00:05]} Rxe1+ {[%emt 0:00:02]} 38. Kf2 {[%emt 0:00:07]} Rxf7+ {[%emt 0:00:24]} 39. Kxe1 {[%emt 0:00:04]} Rf4 {[%emt 0:00:26]} 40. Rd5 {[%emt 0:01:09]} Rg4 {[%emt 0:00:49]} 41. Kf2 {[%emt 0:02:12]} a4 {[%emt 0:00:37]} 42. Rxc5 {[%emt 0:00:21]} axb3 {[%emt 0:00:03]} 43. axb3 {[%emt 0:00:03]} Rb4 {[%emt 0:00:14]} 44. Rc7+ {[%emt 0:00:22]} Kh6 {[%emt 0:00:03]} 45. Rb7 {[%emt 0:00:14]} Rd4 {[%emt 0:00:02]} 46. Ke3 {[%emt 0:00:36]} Rg4 {[%emt 0:00:25]} 47. Bf3 {[%emt 0:00:19]} Rh4 {[%emt 0:00:01]} 48. b4 {[%emt 0:01:06]} Kg5 {[%emt 0:00:04]} 49. Be4 {[%emt 0:00:30]} Kf6 {[%emt 0:01:39]} 50. b5 {[%emt 0:00:25]} g5 {[%emt 0:00:16]} 51. Kd4 {[%emt 0:01:06]} Rh8 {[%emt 0:00:24]} 52. Rb6+ {[%emt 0:00:31]} 1-0

[Event "2nd Mix Bassano 2021"]
[Site "Bassano del Grappa"]
[Date "2021.03.27"]
[Round "7.7"]
[White "Shetty, Atulya"]
[Black "Formento, Paolo"]
[Result "0-1"]
[ECO "A37"]
[WhiteElo "2447"]
[BlackElo "2329"]
[Annotator "ChessBase"]
[PlyCount "134"]
[EventDate "2021.03.24"]
[EventType "swiss"]
[EventCountry "ITA"]
[SourceTitle "playchess.com"]
[Source "ChessBase"]
[SourceQuality "1"]
[TimeControl "5400+30"]

1. c4 {[%emt 0:00:00]} c5 {[%emt 0:17:06]} 2. g3 {[%emt 0:00:00]} Nc6 {[%emt 0:00:58]} 3. Bg2 {[%emt 0:00:00]} g6 {[%emt 0:00:14]} 4. Nc3 {[%emt 0:00:16]} Bg7 {[%emt 0:00:15]} 5. Nf3 {[%emt 0:00:08]} d6 {[%emt 0:01:03]} 6. O-O {[%emt 0:01:19]} e5 {[%emt 0:00:06]} 7. a3 {[%emt 0:01:06]} a5 {[%emt 0:00:04]} 8. d3 {[%emt 0:00:53]} Nge7 {[%emt 0:00:24]} 9. Rb1 {[%emt 0:00:25]} O-O {[%emt 0:00:52]} 10. b3 {[%emt 0:00:25]} h6 {[%emt 0:02:02]} 11. Nd2 {[%emt 0:02:11]} Be6 {[%emt 0:01:57]} 12. Nd5 {[%emt 0:00:32]} Rb8 {[%emt 0:00:17]} 13. Bb2 {[%emt 0:01:55]} b5 {[%emt 0:02:23]} 14. e3 {[%emt 0:01:52]} Qd7 {[%emt 0:06:21]} 15. Qc2 {[%emt 0:03:20]} b4 {[%emt 0:28:24]} 16. Ra1 {[%emt 0:09:46]} Bh3 {[%emt 0:01:35]} 17. Ne4 {[%emt 0:04:17]} Nxd5 {[%emt 0:07:25]} 18. Bxh3 {[%emt 0:00:50]} Nxe3 {[%emt 0:03:43]} 19. Bxd7 {[%emt 0:01:42]} Nxc2 {[%emt 0:03:48]} 20. Bxc6 {[%emt 0:00:13]} bxa3 {[%emt 0:03:17]} 21. Bc3 {[%emt 0:07:01]} Nxa1 {[%emt 0:11:43]} 22. Rxa1 {[%emt 0:01:03]} Rxb3 {[%emt 0:00:05]} 23. Ba4 {[%emt 0:01:13]} Rfb8 {[%emt 0:02:07]} 24. Bxb3 {[%emt 0:05:59]} Rxb3 {[%emt 0:00:01]} 25. Bxa5 {[%emt 0:02:59]} f5 {[%emt 0:00:52]} 26. Nd2 {[%emt 0:03:15]} Rxd3 {[%emt 0:00:07]} 27. Kf1 {[%emt 0:00:29]} e4 {[%emt 0:01:10]} 28. Ra2 {[%emt 0:00:11]} Kf7 {[%emt 0:01:38]} 29. Ke2 {[%emt 0:01:44]} Ke6 {[%emt 0:00:24]} 30. Nf1 {[%emt 0:49:56]} Rb3 {[%emt 0:03:10]} 31. Bd2 {[%emt 0:00:00]} g5 {[%emt 0:00:54]} 32. Bc1 {[%emt 0:00:00]} Bb2 {[%emt 0:00:43]} 33. Nd2 {[%emt 0:00:00]} Rb4 {[%emt 0:00:22]} 34. Kd1 {[%emt 0:00:00]} Ke5 {[%emt 0:00:14]} 35. Bxb2+ {[%emt 0:00:00]} axb2 {[%emt 0:00:08]} 36. Kc2 {[%emt 0:00:00]} f4 {[%emt 0:00:52]} 37. Ra8 {[%emt 0:00:00]} b1=Q+ {[%emt 0:01:04]} 38. Nxb1 {[%emt 0:00:00]} Rxc4+ {[%emt 0:00:01]} 39. Kd2 {[%emt 0:00:00]} Rb4 {[%emt 0:00:46]} 40. Na3 {[%emt 0:00:00]} Rb2+ {[%emt 0:00:41]} 41. Nc2 {[%emt 0:00:00]} d5 {[%emt 0:00:33]} 42. Re8+ {[%emt 0:00:00]} Kf5 {[%emt 0:00:30]} 43. h3 {[%emt 0:00:00]} fxg3 {[%emt 0:00:37]} 44. fxg3 {[%emt 0:00:00]} d4 {[%emt 0:00:24]} 45. Kc1 {[%emt 0:00:00]} Rb3 {[%emt 0:00:02]} 46. Rc8 {[%emt 0:00:00]} Rc3 {[%emt 0:00:37]} 47. Kd1 {[%emt 0:00:00]} e3 {[%emt 0:00:23]} 48. Ne1 {[%emt 0:00:00]} Ke4 {[%emt 0:01:07]} 49. Rh8 {[%emt 0:00:00]} Ra3 {[%emt 0:00:30]} 50. Rxh6 {[%emt 0:00:00]} d3 {[%emt 0:00:23]} 51. Nxd3 {[%emt 0:02:09]} Rxd3+ {[%emt 0:00:14]} 52. Ke1 {[%emt 0:00:05]} Kf3 {[%emt 0:00:51]} 53. Rf6+ {[%emt 0:00:57]} Kxg3 {[%emt 0:00:13]} 54. Rf5 {[%emt 0:00:04]} Kh4 {[%emt 0:00:24]} 55. Rxc5 {[%emt 0:00:25]} Rd2 {[%emt 0:00:45]} 56. Re5 {[%emt 0:03:49]} Rh2 {[%emt 0:00:33]} 57. Re4+ {[%emt 0:01:27]} Kxh3 {[%emt 0:00:07]} 58. Rxe3+ {[%emt 0:00:06]} Kg2 {[%emt 0:00:19]} 59. Re2+ {[%emt 0:01:21]} Kg1 {[%emt 0:00:41]} 60. Re3 {[%emt 0:01:43]} g4 {[%emt 0:00:58]} 61. Rg3+ {[%emt 0:02:14]} Rg2 {[%emt 0:00:01]} 62. Ra3 {[%emt 0:00:06]} g3 {[%emt 0:00:37]} 63. Ra7 {[%emt 0:01:19]} Rb2 {[%emt 0:00:19]} 64. Rg7 {[%emt 0:00:20]} g2 {[%emt 0:00:32]} 65. Rg8 {[%emt 0:00:07]} Rb7 {[%emt 0:00:22]} 66. Rh8 {[%emt 0:00:48]} Re7+ {[%emt 0:00:05]} 67. Kd2 {[%emt 0:00:05]} Re5 {[%emt 0:00:14]} 0-1